[Event "Live Chess"]
[Site "Chess.com"]
[Date "2023.05.21"]
[Round "-"]
[White "ProfPoisson"]
[Black "Hacker_2009"]
[Result "0-1"]
[WhiteElo "1186"]
[BlackElo "1908"]
[TimeControl "300"]
[EndTime "0:54:22 PDT"]
[Termination "Hacker_2009 won by resignation"]

1. e4 {[%clk 0:04:55.8]} 1... c5 {[%clk 0:04:58.3]} 2. Nf3 {[%clk 0:04:48.3]}
2... d6 {[%clk 0:04:56.7]} 3. d4 {[%clk 0:04:45.9]} 3... cxd4 {[%clk 0:04:56]}
4. Nxd4 {[%clk 0:04:41.5]} 4... Nf6 {[%clk 0:04:53.9]} 5. Bb5+ {[%clk
0:04:34.1]} 5... Bd7 {[%clk 0:04:52.2]} 6. Bxd7+ {[%clk 0:04:31.5]} 6... Qxd7
{[%clk 0:04:51]} 7. Nc3 {[%clk 0:04:27.3]} 7... a6 {[%clk 0:04:49.8]} 8. O-O
{[%clk 0:04:25.4]} 8... e6 {[%clk 0:04:49.1]} 9. f4 {[%clk 0:04:15.7]} 9... Be7
{[%clk 0:04:47.3]} 10. f5 {[%clk 0:04:06.5]} 10... O-O {[%clk 0:04:44.3]} 11.
fxe6 {[%clk 0:04:03]} 11... fxe6 {[%clk 0:04:43.5]} 12. Bg5 {[%clk 0:03:49.2]}
12... Nc6 {[%clk 0:04:41.9]} 13. Bxf6 {[%clk 0:03:40.1]} 13... Bxf6 {[%clk
0:04:40.6]} 14. Nf3 {[%clk 0:03:17.1]} 14... Rac8 {[%clk 0:04:26.6]} 15. e5
{[%clk 0:03:12.1]} 15... Nxe5 {[%clk 0:04:24.2]} 16. Nxe5 {[%clk 0:03:09.3]}
16... Bxe5 {[%clk 0:04:19.4]} 17. Rxf8+ {[%clk 0:03:04.5]} 17... Rxf8 {[%clk
0:04:13.9]} 18. Ne4 {[%clk 0:02:55.5]} 18... d5 {[%clk 0:04:07.5]} 19. Nc5
{[%clk 0:02:52.5]} 19... Qc6 {[%clk 0:04:04.4]} 20. Qe2 {[%clk 0:02:37.3]} 20...
Qxc5+ {[%clk 0:03:59.3]} 21. Kh1 {[%clk 0:02:28.7]} 21... Qf2 {[%clk 0:03:58.8]}
0-1

[Event "Live Chess"]
[Site "Chess.com"]
[Date "2023.05.21"]
[Round "-"]
[White "booktrunk"]
[Black "Vitalii18a"]
[Result "1-0"]
[WhiteElo "1287"]
[BlackElo "1105"]
[TimeControl "300"]
[EndTime "0:54:51 PDT"]
[Termination "booktrunk won on time"]

1. d4 {[%clk 0:04:58.8]} 1... d5 {[%clk 0:04:58.5]} 2. Nc3 {[%clk 0:04:57]} 2...
e6 {[%clk 0:04:57.2]} 3. Bf4 {[%clk 0:04:55.4]} 3... Bd6 {[%clk 0:04:52.9]} 4.
Bxd6 {[%clk 0:04:53.9]} 4... Qxd6 {[%clk 0:04:51.6]} 5. Qd3 {[%clk 0:04:51]}
5... Nf6 {[%clk 0:04:50.3]} 6. Nb5 {[%clk 0:04:49.9]} 6... Qc6 {[%clk
0:04:44.6]} 7. e3 {[%clk 0:04:48.1]} 7... a6 {[%clk 0:04:40.8]} 8. Nc3 {[%clk
0:04:46.4]} 8... O-O {[%clk 0:04:38.2]} 9. Nf3 {[%clk 0:04:45.5]} 9... h6 {[%clk
0:04:32]} 10. Ne5 {[%clk 0:04:44.2]} 10... Qd6 {[%clk 0:04:22]} 11. Ne2 {[%clk
0:04:42.8]} 11... Ne4 {[%clk 0:04:17.4]} 12. Nf4 {[%clk 0:04:40]} 12... c5
{[%clk 0:03:52.1]} 13. f3 {[%clk 0:04:37.6]} 13... c4 {[%clk 0:03:33]} 14. Qa3
{[%clk 0:04:17.5]} 14... Qxa3 {[%clk 0:03:14.5]} 15. bxa3 {[%clk 0:04:16.5]}
15... Nc3 {[%clk 0:03:02.3]} 16. Kd2 {[%clk 0:04:15.3]} 16... Nb5 {[%clk
0:02:57.2]} 17. a4 {[%clk 0:04:13.7]} 17... Nd6 {[%clk 0:02:49.7]} 18. c3 {[%clk
0:04:11.2]} 18... Nc6 {[%clk 0:02:43.7]} 19. Rb1 {[%clk 0:04:09.4]} 19... Nxe5
{[%clk 0:02:38.4]} 20. dxe5 {[%clk 0:04:06.9]} 20... Nf5 {[%clk 0:02:29.6]} 21.
Be2 {[%clk 0:03:57.1]} 21... Rb8 {[%clk 0:02:27.8]} 22. e4 {[%clk 0:03:46.2]}
22... dxe4 {[%clk 0:02:20.5]} 23. fxe4 {[%clk 0:03:45.2]} 23... Ne7 {[%clk
0:02:05.4]} 24. Bxc4 {[%clk 0:03:43.3]} 24... Ng6 {[%clk 0:01:55]} 25. Nxg6
{[%clk 0:03:38.3]} 25... fxg6 {[%clk 0:01:50.3]} 26. Rhf1 {[%clk 0:03:36.6]}
26... Bd7 {[%clk 0:01:33.4]} 27. Rxf8+ {[%clk 0:03:32.9]} 27... Kxf8 {[%clk
0:01:31]} 28. Ke3 {[%clk 0:03:29.1]} 28... Bxa4 {[%clk 0:01:20.6]} 29. Bxa6
{[%clk 0:03:17.3]} 29... Bc6 {[%clk 0:01:07.4]} 30. Bc4 {[%clk 0:03:12.8]} 30...
Ke7 {[%clk 0:01:05.5]} 31. Bb5 {[%clk 0:03:09.7]} 31... Ra8 {[%clk 0:00:53.1]}
32. Bxc6 {[%clk 0:03:06.7]} 32... bxc6 {[%clk 0:00:51.6]} 33. Rb7+ {[%clk
0:03:05.1]} 33... Kf8 {[%clk 0:00:48.7]} 34. Rb2 {[%clk 0:02:59.6]} 34... Ra3
{[%clk 0:00:45.8]} 35. Kd3 {[%clk 0:02:58.3]} 35... Ke7 {[%clk 0:00:44.2]} 36.
Kc4 {[%clk 0:02:57]} 36... g5 {[%clk 0:00:37.8]} 37. Kb4 {[%clk 0:02:55.2]}
37... Ra7 {[%clk 0:00:28]} 38. a4 {[%clk 0:02:52.6]} 38... Rb7+ {[%clk
0:00:25.7]} 39. Ka3 {[%clk 0:02:51.5]} 39... Rxb2 {[%clk 0:00:23.7]} 40. Kxb2
{[%clk 0:02:51.1]} 40... Kd7 {[%clk 0:00:22.6]} 41. Kb3 {[%clk 0:02:50.6]} 41...
Kc7 {[%clk 0:00:21.6]} 42. Kc4 {[%clk 0:02:50.3]} 42... Kb6 {[%clk 0:00:20.5]}
43. Kb4 {[%clk 0:02:48.7]} 43... g4 {[%clk 0:00:19]} 44. c4 {[%clk 0:02:47.5]}
44... h5 {[%clk 0:00:18]} 45. a5+ {[%clk 0:02:46.5]} 45... Kb7 {[%clk
0:00:16.7]} 46. Kc5 {[%clk 0:02:45.8]} 46... g6 {[%clk 0:00:15.6]} 47. Kd6
{[%clk 0:02:44.6]} 47... Ka6 {[%clk 0:00:11.4]} 48. Kxc6 {[%clk 0:02:43.5]}
48... Kxa5 {[%clk 0:00:10.5]} 49. Kd6 {[%clk 0:02:42.9]} 49... Kb4 {[%clk
0:00:09.7]} 50. Kxe6 {[%clk 0:02:42.6]} 50... Kxc4 {[%clk 0:00:09.1]} 51. Kf6
{[%clk 0:02:42]} 51... Kd4 {[%clk 0:00:08]} 52. e6 {[%clk 0:02:41.2]} 52... Kxe4
{[%clk 0:00:05.1]} 53. e7 {[%clk 0:02:40.5]} 53... h4 {[%clk 0:00:03.9]} 54.
e8=Q+ {[%clk 0:02:38.6]} 54... Kd3 {[%clk 0:00:02.3]} 55. Qe1 {[%clk 0:02:37]}
55... g3 {[%clk 0:00:02.1]} 56. hxg3 {[%clk 0:02:36]} 56... hxg3 {[%clk
0:00:01.2]} 57. Qxg3+ {[%clk 0:02:35.2]} 1-0

[Event "Live Chess"]
[Site "Chess.com"]
[Date "2023.05.21"]
[Round "-"]
[White "Tiltador"]
[Black "LiamClery2020"]
[Result "0-1"]
[WhiteElo "761"]
[BlackElo "2020"]
[TimeControl "300"]
[EndTime "0:55:02 PDT"]
[Termination "LiamClery2020 won by resignation"]

1. e4 {[%clk 0:04:55]} 1... Nf6 {[%clk 0:04:59.9]} 2. d3 {[%clk 0:04:52.4]} 2...
e5 {[%clk 0:04:58.8]} 3. Nf3 {[%clk 0:04:51.2]} 3... Nc6 {[%clk 0:04:57.7]} 4.
g3 {[%clk 0:04:46.4]} 4... d5 {[%clk 0:04:56.5]} 5. exd5 {[%clk 0:04:41.5]} 5...
Qxd5 {[%clk 0:04:55]} 6. Bg2 {[%clk 0:04:40.3]} 6... Bg4 {[%clk 0:04:53.7]} 7.
O-O {[%clk 0:04:38.7]} 7... O-O-O {[%clk 0:04:46.6]} 8. Bg5 {[%clk 0:04:36.2]}
8... e4 {[%clk 0:04:43.6]} 9. Nc3 {[%clk 0:04:13.2]} 9... Bxf3 {[%clk
0:04:42.5]} 10. Nxd5 {[%clk 0:04:09.4]} 10... Bxd1 {[%clk 0:04:40.9]} 11. Raxd1
{[%clk 0:04:02.7]} 11... Rxd5 {[%clk 0:04:37.6]} 12. Bxf6 {[%clk 0:03:57.5]}
12... gxf6 {[%clk 0:04:36]} 13. dxe4 {[%clk 0:03:54.7]} 13... Rxd1 {[%clk
0:04:34.4]} 14. Rxd1 {[%clk 0:03:53.3]} 14... Be7 {[%clk 0:04:33.4]} 15. f4
{[%clk 0:03:50.8]} 15... Rd8 {[%clk 0:04:31.8]} 16. Rxd8+ {[%clk 0:03:44.5]}
16... Nxd8 {[%clk 0:04:31.3]} 17. c4 {[%clk 0:03:40.6]} 17... Kd7 {[%clk
0:04:28.9]} 18. b3 {[%clk 0:03:39.6]} 18... Kc6 {[%clk 0:04:28.1]} 19. h4 {[%clk
0:03:37.1]} 19... Kc5 {[%clk 0:04:27.2]} 20. Kf1 {[%clk 0:03:34.9]} 20... Kd4
{[%clk 0:04:26.3]} 21. Ke1 {[%clk 0:03:32.5]} 21... Kc3 {[%clk 0:04:23.6]} 22.
Kd1 {[%clk 0:03:31.4]} 22... Kb2 {[%clk 0:04:22.6]} 23. e5 {[%clk 0:03:25.1]}
23... fxe5 {[%clk 0:04:21.3]} 24. fxe5 {[%clk 0:03:23.5]} 24... Kxa2 {[%clk
0:04:20.9]} 25. Bd5 {[%clk 0:03:21]} 25... Kxb3 {[%clk 0:04:19]} 26. h5 {[%clk
0:03:14.9]} 26... Kc3 {[%clk 0:04:14.9]} 27. g4 {[%clk 0:03:13]} 27... Kd4
{[%clk 0:04:13.5]} 28. Ke2 {[%clk 0:03:11.7]} 28... a5 {[%clk 0:04:12.2]} 29.
Kd2 {[%clk 0:03:09.2]} 29... c6 {[%clk 0:04:08.3]} 30. Bg2 {[%clk 0:02:56.3]}
30... Kxe5 {[%clk 0:04:06.4]} 31. Kc2 {[%clk 0:02:51.6]} 31... Kf4 {[%clk
0:04:03.6]} 32. Kb3 {[%clk 0:02:46]} 32... Kxg4 {[%clk 0:04:00.8]} 33. Ka4
{[%clk 0:02:41.1]} 33... Kxh5 {[%clk 0:03:59.4]} 34. Kxa5 {[%clk 0:02:39.9]}
34... Bc5 {[%clk 0:03:57.9]} 35. Bh3 {[%clk 0:02:34.3]} 35... Kg5 {[%clk
0:03:55.9]} 36. Bc8 {[%clk 0:02:32.7]} 36... f5 {[%clk 0:03:54.3]} 37. Bxb7
{[%clk 0:02:31.1]} 37... Nxb7+ {[%clk 0:03:52.5]} 38. Ka4 {[%clk 0:02:27.2]}
38... h5 {[%clk 0:03:51.4]} 39. Kb3 {[%clk 0:02:26.2]} 39... h4 {[%clk
0:03:51.3]} 40. Kc3 {[%clk 0:02:25.5]} 40... h3 {[%clk 0:03:38.9]} 0-1

[Event "Live Chess"]
[Site "Chess.com"]
[Date "2023.05.21"]
[Round "-"]
[White "blunderabit"]
[Black "mach247"]
[Result "1-0"]
[WhiteElo "1818"]
[BlackElo "1334"]
[TimeControl "300"]
[EndTime "0:55:09 PDT"]
[Termination "blunderabit won by resignation"]

1. e4 {[%clk 0:04:57.8]} 1... d5 {[%clk 0:04:59.2]} 2. exd5 {[%clk 0:04:56.2]}
2... Qxd5 {[%clk 0:04:59.1]} 3. Nc3 {[%clk 0:04:55]} 3... Qd8 {[%clk 0:04:58.3]}
4. Bc4 {[%clk 0:04:52.6]} 4... Nf6 {[%clk 0:04:54.7]} 5. d3 {[%clk 0:04:50]}
5... a6 {[%clk 0:04:53.7]} 6. Qe2 {[%clk 0:04:39.6]} 6... b5 {[%clk 0:04:46.4]}
7. Bb3 {[%clk 0:04:37.5]} 7... Bb7 {[%clk 0:04:44.4]} 8. Nf3 {[%clk 0:04:33.7]}
8... e6 {[%clk 0:04:36.6]} 9. O-O {[%clk 0:04:31.4]} 9... Be7 {[%clk 0:04:35.5]}
10. Re1 {[%clk 0:04:27.4]} 10... Nd5 {[%clk 0:04:24.4]} 11. Nxd5 {[%clk
0:04:20.5]} 11... Bxd5 {[%clk 0:04:24.3]} 12. c4 {[%clk 0:04:18.8]} 12... bxc4
{[%clk 0:04:10.1]} 13. dxc4 {[%clk 0:04:17.3]} 13... Bb7 {[%clk 0:04:01.6]} 14.
Bf4 {[%clk 0:04:12]} 14... O-O {[%clk 0:03:51]} 15. Rad1 {[%clk 0:04:09.2]}
15... Qc8 {[%clk 0:03:44]} 16. Bc2 {[%clk 0:04:06.3]} 16... Nd7 {[%clk
0:03:36.5]} 17. Ng5 {[%clk 0:03:20.8]} 17... Bxg5 {[%clk 0:02:24.7]} 18. Bxg5
{[%clk 0:03:17.3]} 18... c5 {[%clk 0:02:20]} 19. Qd3 {[%clk 0:03:14]} 19... g6
{[%clk 0:02:11.6]} 20. Qxd7 {[%clk 0:03:11.8]} 20... Qxd7 {[%clk 0:02:09]} 21.
Rxd7 {[%clk 0:03:10.6]} 1-0

[Event "Live Chess"]
[Site "Chess.com"]
[Date "2023.05.21"]
[Round "-"]
[White "YrrriKharkiv"]
[Black "BostonStrangler"]
[Result "1-0"]
[WhiteElo "2070"]
[BlackElo "2068"]
[TimeControl "300"]
[EndTime "0:55:21 PDT"]
[Termination "YrrriKharkiv won by resignation"]

1. d4 {[%clk 0:04:55.6]} 1... Nf6 {[%clk 0:04:58.4]} 2. Bg5 {[%clk 0:04:54.5]}
2... d5 {[%clk 0:04:56.1]} 3. c4 {[%clk 0:04:51]} 3... e6 {[%clk 0:04:53.1]} 4.
Nc3 {[%clk 0:04:49]} 4... Bb4 {[%clk 0:04:50]} 5. e3 {[%clk 0:04:43.2]} 5... h6
{[%clk 0:04:45.9]} 6. Qa4+ {[%clk 0:04:40.9]} 6... Nc6 {[%clk 0:04:44]} 7. Bxf6
{[%clk 0:04:39.6]} 7... Qxf6 {[%clk 0:04:38.1]} 8. Nf3 {[%clk 0:04:39]} 8... Bd7
{[%clk 0:04:31.3]} 9. Qc2 {[%clk 0:04:37.5]} 9... dxc4 {[%clk 0:04:20.5]} 10.
Bxc4 {[%clk 0:04:35.4]} 10... e5 {[%clk 0:04:11]} 11. O-O {[%clk 0:04:18.7]}
11... exd4 {[%clk 0:03:58.3]} 12. exd4 {[%clk 0:04:06.5]} 12... O-O {[%clk
0:03:55.9]} 13. Nd5 {[%clk 0:03:41.6]} 13... Qd6 {[%clk 0:03:39.2]} 14. a3
{[%clk 0:03:39.5]} 14... Ba5 {[%clk 0:03:34.1]} 15. b4 {[%clk 0:03:19.1]} 15...
Bb6 {[%clk 0:03:30]} 16. Rad1 {[%clk 0:03:16.8]} 16... Ne7 {[%clk 0:03:17.9]}
17. Nxe7+ {[%clk 0:03:05.2]} 17... Qxe7 {[%clk 0:03:17]} 18. Ne5 {[%clk
0:02:59.6]} 18... Bc8 {[%clk 0:02:57.9]} 19. Ng6 {[%clk 0:02:50.1]} 19... Qd8
{[%clk 0:02:40.2]} 20. Nxf8 {[%clk 0:02:47.1]} 20... Qxf8 {[%clk 0:02:40.1]} 21.
Rfe1 {[%clk 0:02:33.4]} 21... a5 {[%clk 0:02:36.5]} 22. Qb3 {[%clk 0:02:28.5]}
22... axb4 {[%clk 0:02:30.3]} 23. Bxf7+ {[%clk 0:02:23.4]} 1-0

[Event "Live Chess"]
[Site "Chess.com"]
[Date "2023.05.21"]
[Round "-"]
[White "Woodpusher500"]
[Black "friarnator"]
[Result "0-1"]
[WhiteElo "1250"]
[BlackElo "1997"]
[TimeControl "300"]
[EndTime "0:55:36 PDT"]
[Termination "friarnator won by checkmate"]

1. e4 {[%clk 0:04:57.1]} 1... Nf6 {[%clk 0:04:58.1]} 2. e5 {[%clk 0:04:53.7]}
2... Nd5 {[%clk 0:04:57.5]} 3. c4 {[%clk 0:04:47.6]} 3... Nb6 {[%clk 0:04:56.5]}
4. d4 {[%clk 0:04:37.4]} 4... d6 {[%clk 0:04:55.7]} 5. Nf3 {[%clk 0:04:32.9]}
5... Bg4 {[%clk 0:04:53.2]} 6. Nbd2 {[%clk 0:04:23.4]} 6... dxe5 {[%clk
0:04:51.7]} 7. dxe5 {[%clk 0:04:19]} 7... Bxf3 {[%clk 0:04:50.3]} 8. Qxf3 {[%clk
0:04:09.9]} 8... Nc6 {[%clk 0:04:49.4]} 9. c5 {[%clk 0:03:58.6]} 9... Nd5 {[%clk
0:04:35]} 10. Bc4 {[%clk 0:03:52.1]} 10... e6 {[%clk 0:04:34.1]} 11. Ne4 {[%clk
0:03:41]} 11... Nxe5 {[%clk 0:04:30.5]} 12. Qb3 {[%clk 0:03:24.3]} 12... Nxc4
{[%clk 0:04:26.8]} 13. Qxc4 {[%clk 0:03:20.4]} 13... c6 {[%clk 0:04:26.2]} 14.
O-O {[%clk 0:03:09.3]} 14... Be7 {[%clk 0:04:25.4]} 15. Bd2 {[%clk 0:03:00]}
15... O-O {[%clk 0:04:24.4]} 16. Rad1 {[%clk 0:02:57.8]} 16... Qc7 {[%clk
0:04:12.5]} 17. Qc2 {[%clk 0:02:35.3]} 17... Rfd8 {[%clk 0:04:01.3]} 18. Ng5
{[%clk 0:02:29.9]} 18... Bxg5 {[%clk 0:03:55]} 19. Bxg5 {[%clk 0:02:27.1]} 19...
f6 {[%clk 0:03:54.4]} 20. Bh4 {[%clk 0:02:19.4]} 20... e5 {[%clk 0:03:53.6]} 21.
Qf5 {[%clk 0:02:04.5]} 21... Qd7 {[%clk 0:03:51.2]} 22. Qf3 {[%clk 0:01:56.4]}
22... Qe7 {[%clk 0:03:50]} 23. Rfe1 {[%clk 0:01:48.3]} 23... Qxc5 {[%clk
0:03:48.3]} 24. Qg3 {[%clk 0:01:42.9]} 24... Kh8 {[%clk 0:03:39.7]} 25. Kh1
{[%clk 0:01:32.1]} 25... Nf4 {[%clk 0:03:34.4]} 26. Rxd8+ {[%clk 0:01:19.1]}
26... Rxd8 {[%clk 0:03:34.3]} 27. Qh3 {[%clk 0:01:06.8]} 27... Nd3 {[%clk
0:03:24.8]} 28. Re2 {[%clk 0:00:55.4]} 28... Qc1+ {[%clk 0:03:21.8]} 29. Re1
{[%clk 0:00:53.2]} 29... Qxe1# {[%clk 0:03:20.7]} 0-1

[Event "Live Chess"]
[Site "Chess.com"]
[Date "2023.05.21"]
[Round "-"]
[White "yarek"]
[Black "LutherSullivan"]
[Result "1-0"]
[WhiteElo "1894"]
[BlackElo "2104"]
[TimeControl "300"]
[EndTime "0:55:41 PDT"]
[Termination "yarek won on time"]

1. e4 {[%clk 0:04:56.3]} 1... e5 {[%clk 0:04:58.8]} 2. Nf3 {[%clk 0:04:54.4]}
2... Nc6 {[%clk 0:04:58.1]} 3. Bc4 {[%clk 0:04:52.3]} 3... Nf6 {[%clk
0:04:56.2]} 4. d3 {[%clk 0:04:48.5]} 4... Bc5 {[%clk 0:04:54.8]} 5. c3 {[%clk
0:04:45.5]} 5... O-O {[%clk 0:04:54.1]} 6. O-O {[%clk 0:04:42.7]} 6... h6 {[%clk
0:04:50.8]} 7. Nbd2 {[%clk 0:04:36.6]} 7... d5 {[%clk 0:04:48.5]} 8. exd5 {[%clk
0:04:27.7]} 8... Nxd5 {[%clk 0:04:47.2]} 9. b4 {[%clk 0:04:26.6]} 9... Bb6
{[%clk 0:04:42.7]} 10. Qc2 {[%clk 0:04:12.8]} 10... Bf5 {[%clk 0:04:26.8]} 11.
Ne4 {[%clk 0:03:57]} 11... Nf6 {[%clk 0:04:06.3]} 12. a4 {[%clk 0:03:39]} 1-0

[Event "Live Chess"]
[Site "Chess.com"]
[Date "2023.05.21"]
[Round "-"]
[White "swingrumbacha"]
[Black "OceanFloater"]
[Result "1-0"]
[WhiteElo "2415"]
[BlackElo "1019"]
[TimeControl "300"]
[EndTime "0:55:56 PDT"]
[Termination "swingrumbacha won by checkmate"]

1. e4 {[%clk 0:04:54.1]} 1... c5 {[%clk 0:04:58.6]} 2. Nc3 {[%clk 0:04:51]} 2...
e6 {[%clk 0:04:56.9]} 3. g3 {[%clk 0:04:48]} 3... Nc6 {[%clk 0:04:51.9]} 4. Bg2
{[%clk 0:04:44.5]} 4... b6 {[%clk 0:04:43.1]} 5. Nf3 {[%clk 0:04:40.6]} 5... Bb7
{[%clk 0:04:42.1]} 6. a4 {[%clk 0:04:36.1]} 6... a5 {[%clk 0:04:37.3]} 7. O-O
{[%clk 0:04:32.2]} 7... Nf6 {[%clk 0:04:33]} 8. e5 {[%clk 0:04:28.4]} 8... Nd5
{[%clk 0:04:29.1]} 9. Nxd5 {[%clk 0:04:25]} 9... exd5 {[%clk 0:04:27.2]} 10. Re1
{[%clk 0:04:21]} 10... Be7 {[%clk 0:04:16.6]} 11. d4 {[%clk 0:04:16.9]} 11...
O-O {[%clk 0:04:08.1]} 12. c3 {[%clk 0:04:13]} 12... c4 {[%clk 0:04:04.5]} 13.
Nd2 {[%clk 0:04:09]} 13... Nb8 {[%clk 0:03:55.8]} 14. Nxc4 {[%clk 0:04:04.5]}
14... dxc4 {[%clk 0:03:44]} 15. Bxb7 {[%clk 0:04:00.9]} 15... Ra7 {[%clk
0:03:37.5]} 16. Bd5 {[%clk 0:03:56.3]} 16... Qc7 {[%clk 0:03:28.7]} 17. h4
{[%clk 0:03:51.4]} 17... d6 {[%clk 0:03:21.7]} 18. Qe2 {[%clk 0:03:46.5]} 18...
Re8 {[%clk 0:03:16.4]} 19. Bf4 {[%clk 0:03:41.9]} 19... Nd7 {[%clk 0:03:12.5]}
20. exd6 {[%clk 0:03:36.2]} 20... Bxd6 {[%clk 0:02:59.8]} 21. Bxf7+ {[%clk
0:03:31.6]} 21... Kxf7 {[%clk 0:02:56.4]} 22. Qxe8+ {[%clk 0:03:27]} 22... Kf6
{[%clk 0:02:52]} 23. Qe6# {[%clk 0:03:23.5]} 1-0

[Event "Live Chess"]
[Site "Chess.com"]
[Date "2023.05.21"]
[Round "-"]
[White "Singapourfeuj"]
[Black "whitedjohn"]
[Result "1-0"]
[WhiteElo "2188"]
[BlackElo "1642"]
[TimeControl "300"]
[EndTime "0:55:56 PDT"]
[Termination "Singapourfeuj won by resignation"]

1. d4 {[%clk 0:04:59.6]} 1... Nf6 {[%clk 0:04:56.7]} 2. Nf3 {[%clk 0:04:58.7]}
2... d5 {[%clk 0:04:55.2]} 3. g3 {[%clk 0:04:57.6]} 3... g6 {[%clk 0:04:53.3]}
4. Bg2 {[%clk 0:04:56.9]} 4... Bg7 {[%clk 0:04:52.2]} 5. O-O {[%clk 0:04:56.3]}
5... O-O {[%clk 0:04:51.1]} 6. Nbd2 {[%clk 0:04:55.6]} 6... Nbd7 {[%clk
0:04:49.8]} 7. Re1 {[%clk 0:04:55]} 7... Re8 {[%clk 0:04:48.7]} 8. e4 {[%clk
0:04:53.7]} 8... e5 {[%clk 0:04:47.8]} 9. dxe5 {[%clk 0:04:50.5]} 9... Nxe5
{[%clk 0:04:46.7]} 10. Nxe5 {[%clk 0:04:48.5]} 10... Rxe5 {[%clk 0:04:45.7]} 11.
exd5 {[%clk 0:04:46.7]} 11... Rxe1+ {[%clk 0:04:44.1]} 12. Qxe1 {[%clk
0:04:45.8]} 12... Nxd5 {[%clk 0:04:40.7]} 13. Ne4 {[%clk 0:04:38.9]} 13... Nf6
{[%clk 0:04:28.9]} 14. Bg5 {[%clk 0:04:37.5]} 14... Bf5 {[%clk 0:04:17]} 15. Rd1
{[%clk 0:04:34.3]} 15... Qe7 {[%clk 0:04:11.5]} 16. Nxf6+ {[%clk 0:04:33.3]}
16... Bxf6 {[%clk 0:04:10.3]} 17. Qxe7 {[%clk 0:04:32.3]} 17... Bxe7 {[%clk
0:04:09.4]} 18. Bxe7 {[%clk 0:04:31.3]} 18... Bxc2 {[%clk 0:04:06.7]} 19. Rd8+
{[%clk 0:04:30]} 19... Rxd8 {[%clk 0:04:04.9]} 20. Bxd8 {[%clk 0:04:29.1]} 1-0

[Event "Live Chess"]
[Site "Chess.com"]
[Date "2023.05.21"]
[Round "-"]
[White "Biranidun"]
[Black "MJMykh"]
[Result "1-0"]
[WhiteElo "2534"]
[BlackElo "1116"]
[TimeControl "300"]
[EndTime "0:56:07 PDT"]
[Termination "Biranidun won by checkmate"]

1. e4 {[%clk 0:04:53.6]} 1... e5 {[%clk 0:04:58.4]} 2. Nf3 {[%clk 0:04:52.7]}
2... Nc6 {[%clk 0:04:57.2]} 3. Bc4 {[%clk 0:04:52.3]} 3... Bc5 {[%clk
0:04:56.7]} 4. c3 {[%clk 0:04:51.2]} 4... Nf6 {[%clk 0:04:40.1]} 5. d4 {[%clk
0:04:49.9]} 5... exd4 {[%clk 0:04:40]} 6. b4 {[%clk 0:04:49]} 6... Bb6 {[%clk
0:04:35.9]} 7. e5 {[%clk 0:04:48]} 7... Ng4 {[%clk 0:04:27.9]} 8. cxd4 {[%clk
0:04:43.7]} 8... d5 {[%clk 0:04:26.6]} 9. Bb5 {[%clk 0:04:34.9]} 9... O-O {[%clk
0:04:21.9]} 10. h3 {[%clk 0:04:32.8]} 10... Nh6 {[%clk 0:04:13.6]} 11. Bxh6
{[%clk 0:04:31.7]} 11... gxh6 {[%clk 0:04:12.5]} 12. Qd2 {[%clk 0:04:30]} 12...
Kg7 {[%clk 0:04:07.9]} 13. Nc3 {[%clk 0:04:25.4]} 13... a5 {[%clk 0:04:06.8]}
14. Bxc6 {[%clk 0:04:18.2]} 14... bxc6 {[%clk 0:04:04.7]} 15. Ne2 {[%clk
0:04:17.7]} 15... axb4 {[%clk 0:04:00.3]} 16. Ng3 {[%clk 0:04:15.5]} 16... Ba5
{[%clk 0:03:56.4]} 17. Nh5+ {[%clk 0:04:14]} 17... Kg6 {[%clk 0:03:54.8]} 18.
Nf4+ {[%clk 0:04:10]} 18... Kg7 {[%clk 0:03:49.2]} 19. O-O {[%clk 0:04:01.7]}
19... b3 {[%clk 0:03:45]} 20. Qd3 {[%clk 0:04:00]} 20... bxa2 {[%clk 0:03:41.7]}
21. Nh5+ {[%clk 0:03:58.4]} 21... Kh8 {[%clk 0:03:38.9]} 22. Nf6 {[%clk
0:03:57.6]} 22... Ba6 {[%clk 0:03:29.9]} 23. Qxh7# {[%clk 0:03:56.1]} 1-0

[Event "Live Chess"]
[Site "Chess.com"]
[Date "2023.05.21"]
[Round "-"]
[White "MarkLim1"]
[Black "OSmith06"]
[Result "1-0"]
[WhiteElo "1694"]
[BlackElo "1635"]
[TimeControl "300"]
[EndTime "0:56:10 PDT"]
[Termination "MarkLim1 won by resignation"]

1. d4 {[%clk 0:04:59]} 1... Nf6 {[%clk 0:04:58.9]} 2. Nf3 {[%clk 0:04:58.6]}
2... e6 {[%clk 0:04:58.5]} 3. e3 {[%clk 0:04:57.6]} 3... d5 {[%clk 0:04:58.4]}
4. Bd3 {[%clk 0:04:56.8]} 4... c5 {[%clk 0:04:56.7]} 5. b3 {[%clk 0:04:55.5]}
5... cxd4 {[%clk 0:04:52.2]} 6. exd4 {[%clk 0:04:54.6]} 6... Nc6 {[%clk
0:04:52.1]} 7. O-O {[%clk 0:04:53.4]} 7... Bd6 {[%clk 0:04:50.8]} 8. Bb2 {[%clk
0:04:52.6]} 8... O-O {[%clk 0:04:49.4]} 9. a3 {[%clk 0:04:52]} 9... a6 {[%clk
0:04:48.7]} 10. Nbd2 {[%clk 0:04:51.3]} 10... b5 {[%clk 0:04:48.3]} 11. Ne5
{[%clk 0:04:50.1]} 11... Qc7 {[%clk 0:04:43.6]} 12. f4 {[%clk 0:04:48.6]} 12...
Bb7 {[%clk 0:04:42.2]} 13. Qf3 {[%clk 0:04:47.1]} 13... Bxe5 {[%clk 0:04:32.3]}
14. fxe5 {[%clk 0:04:46]} 14... Nxe5 {[%clk 0:04:05.6]} 15. dxe5 {[%clk
0:04:43.6]} 15... d4 {[%clk 0:04:05.1]} 16. Qh3 {[%clk 0:04:37.8]} 16... Qxe5
{[%clk 0:04:01.8]} 17. Rxf6 {[%clk 0:04:33.2]} 17... Qe3+ {[%clk 0:03:52.1]} 18.
Rf2 {[%clk 0:04:21.5]} 1-0